fUSD/lending_fUSD_20250103
["ID","MTS","AMOUNT","RATE_DAILY","PERIOD"]
[347542372,1735911368046,-500.0,8.979e-05,2]
[347542373,1735911368068,-500.0,8.979e-05,2]
[347542374,1735911368089,-500.0,8.979e-05,2]
[347542375,1735911368109,-500.0,8.979e-05,2]
[347542376,1735911368134,-500.0,8.979e-05,2]
[347542377,1735911368156,-500.0,8.979e-05,2]
[347542378,1735911368177,-500.0,8.979e-05,2]
[347542379,1735911368199,-500.0,8.979e-05,2]
[347542380,1735911368222,-695.93,8.979e-05,2]
[347542381,1735911368303,-341.35,8.979e-05,2]
[347542382,1735911368325,-500.0,8.979e-05,2]
[347542383,1735911368346,-500.0,8.979e-05,2]
[347542384,1735911368368,-500.0,8.979e-05,2]
[347542385,1735911368392,-500.0,8.979e-05,2]
[347542386,1735911368413,-500.0,8.979e-05,2]
[347542387,1735911368435,-500.0,8.979e-05,2]
[347542388,1735911368457,-766.39,8.979e-05,2]
[347542389,1735911368479,-500.0,8.979e-05,2]
[347542390,1735911368502,-500.0,8.979e-05,2]
[347542391,1735911368523,-500.0,8.979e-05,2]
[347542392,1735911368544,-5039.44,8.979e-05,2]
[347542393,1735911368566,-500.0,8.979e-05,2]
[347542394,1735911368588,-483.55216879,8.979e-05,2]
[347542395,1735911368610,-679.02,8.979e-05,2]
[347542396,1735911368634,-500.0,8.979e-05,2]
[347542397,1735911368655,-1145.87,8.979e-05,2]
[347542398,1735911368678,-304.80497339,8.979e-05,2]
[347542399,1735911368702,-299.99,8.979e-05,2]
[347542400,1735911368724,-500.0,8.979e-05,2]
[347542401,1735911368745,-500.0,8.979e-05,2]
[347542402,1735911368767,-500.0,8.979e-05,2]
[347542403,1735911368790,-500.0,8.979e-05,2]
[347542404,1735911368812,-500.0,8.979e-05,2]
[347542405,1735911368833,-500.0,8.979e-05,2]
[347542406,1735911368855,-504.62,8.979e-05,2]
[347542407,1735911368878,-500.0,8.979e-05,2]
[347542408,1735911368899,-500.0,8.979e-05,2]
[347542409,1735911368920,-500.0,8.979e-05,2]
[347542410,1735911368942,-506.97,8.979e-05,2]
[347542411,1735911368964,-500.0,8.979e-05,2]
[347542412,1735911368986,-516.99,8.979e-05,2]
[347542413,1735911369007,-528.96,8.979e-05,2]
[347542414,1735911369027,-2855.79,8.979e-05,2]
[347542415,1735911369049,-752.29,8.979e-05,2]
[347542416,1735911369070,-500.0,8.979e-05,2]
[347542417,1735911369091,-500.0,8.979e-05,2]
[347542418,1735911369111,-500.0,8.979e-05,2]
[347542419,1735911369134,-600.68,8.979e-05,2]
[347542420,1735911369156,-500.0,8.979e-05,2]
[347542421,1735911369178,-500.0,8.979e-05,2]
[347542422,1735911369200,-500.0,8.979e-05,2]
[347542423,1735911369221,-500.0,8.979e-05,2]
[347542424,1735911369243,-500.0,8.979e-05,2]
[347542425,1735911369267,-8528.44,8.979e-05,2]
[347542426,1735911369290,-500.0,8.979e-05,2]
[347542427,1735911369311,-461.46699695,8.979e-05,2]
[347542428,1735911369333,-524.4,8.979e-05,2]
[347542429,1735911369354,-500.0,8.979e-05,2]
[347542430,1735911369377,-519.9,8.979e-05,2]
[347542431,1735911369399,-6832.21,8.98e-05,2]
[347542432,1735911369421,-672.86,8.98e-05,2]
[347542433,1735911369443,-3134.88,8.98e-05,2]
[347542434,1735911369464,-2000.0,8.98e-05,2]
[347542435,1735911369485,-500.0,8.98e-05,2]
[347542436,1735911369506,-6223.09,8.98e-05,2]
[347542437,1735911369527,-500.0,8.98e-05,2]
[347542438,1735911369546,-257.41051181,8.98e-05,2]
[347542439,1735911369567,-500.0,8.98e-05,2]
[347542440,1735911369587,-500.0,8.98e-05,2]
[347542441,1735911369608,-500.0,8.98e-05,2]
[347542442,1735911369633,-1343.3,8.98e-05,2]
[347542443,1735911369654,-667.88,8.98e-05,2]
[347542444,1735911369676,-500.0,8.98e-05,2]
[347542445,1735911369697,-1282.12,8.98e-05,2]
[347542446,1735911369720,-500.0,8.98e-05,2]
[347542447,1735911369741,-862.19,8.98e-05,2]
[347542448,1735911369762,-722.7,8.98e-05,2]
[347542449,1735911369783,-500.0,8.98e-05,2]
[347542450,1735911369806,-500.0,8.98e-05,2]
[347542451,1735911369828,-810.53,8.98e-05,2]
[347542452,1735911369850,-514.54,8.98e-05,2]
[347542453,1735911369872,-567.44,8.98e-05,2]
[347542454,1735911369894,-500.0,8.98e-05,2]
[347542455,1735911369915,-668.89,8.98e-05,2]
[347542456,1735911369937,-986.46,8.98e-05,2]
[347542457,1735911369959,-500.0,8.98e-05,2]
[347542458,1735911369980,-980.78,8.98e-05,2]
[347542459,1735911370001,-630.51,8.98e-05,2]
[347542460,1735911370023,-1101.77,8.98e-05,2]
[347542461,1735911370043,-1254.06,8.98e-05,2]
[347542462,1735911370065,-894.87,8.98e-05,2]
[347542463,1735911370087,-669.19,8.98e-05,2]
[347542464,1735911370108,-500.0,8.98e-05,2]
[347542465,1735911370133,-500.0,8.98e-05,2]
[347542466,1735911370156,-500.0,8.98e-05,2]
[347542467,1735911370178,-611.02,8.98e-05,2]
[347542468,1735911370200,-940.96,8.98e-05,2]
[347542469,1735911370222,-500.0,8.98e-05,2]
[347542470,1735911370244,-690.25,8.98e-05,2]
[347542471,1735911370266,-500.0,8.98e-05,2]
[347542472,1735911370286,-991.05,8.98e-05,2]
[347542473,1735911370307,-540.58,8.98e-05,2]
[347542474,1735911370329,-748.1,8.98e-05,2]
[347542475,1735911370351,-500.0,8.98e-05,2]
[347542476,1735911370374,-527.5,8.98e-05,2]
[347542477,1735911370396,-915.98,8.98e-05,2]
[347542478,1735911370418,-992.23,8.98e-05,2]
[347542479,1735911370440,-799.13,8.98e-05,2]
[347542480,1735911370462,-2266.76,8.98e-05,2]
[347542481,1735911370484,-795.89,8.98e-05,2]
[347542482,1735911370505,-1416.07,8.98e-05,2]
[347542483,1735911370528,-702.37,8.98e-05,2]
[347542484,1735911370549,-571.17,8.98e-05,2]
[347542485,1735911370570,-821.69,8.98e-05,2]
[347542486,1735911370592,-1463.88,8.98e-05,2]
[347542487,1735911370617,-530.42,8.98e-05,2]
[347542488,1735911370643,-911.33,8.98e-05,2]
[347542489,1735911370665,-953.09,8.98e-05,2]
[347542490,1735911370687,-500.0,8.98e-05,2]
[347542491,1735911370710,-1281.85,8.98e-05,2]
[347542492,1735911370732,-2454.54,8.98e-05,2]
[347542493,1735911370753,-674.24,8.98e-05,2]
[347542494,1735911370773,-1050.45,8.98e-05,2]
[347542495,1735911370795,-583.2,8.98e-05,2]
[347542496,1735911370816,-2251.2,8.98e-05,2]
[347542497,1735911370838,-632.57,8.98e-05,2]
[347542498,1735911370859,-863.99,8.98e-05,2]
[347542499,1735911370882,-973.13,8.98e-05,2]
[347542500,1735911370903,-1174.44,8.98e-05,2]
[347542501,1735911370926,-500.0,8.98e-05,2]
[347542502,1735911370947,-500.0,8.98e-05,2]
[347542503,1735911370967,-2354.49,8.98e-05,2]
[347542504,1735911370988,-1500.05,8.98e-05,2]
[347542505,1735911371010,-1001.66,8.98e-05,2]
[347542506,1735911371031,-905.69,8.98e-05,2]
[347542507,1735911371057,-684.8,8.98e-05,2]
[347542508,1735911371081,-1709.9,8.98e-05,2]
[347542509,1735911371102,-1222.36,8.98e-05,2]
[347542510,1735911371125,-660.68,8.98e-05,2]
[347542511,1735911371146,-500.0,8.98e-05,2]
[347542512,1735911371166,-500.0,8.98e-05,2]
[347542513,1735911371187,-7199.2,8.98e-05,2]
[347542514,1735911371209,-500.0,8.98e-05,2]
[347542515,1735911371230,-733.89,8.98e-05,2]
[347542516,1735911371251,-830.03,8.98e-05,2]
[347542517,1735911371273,-736.19,8.98e-05,2]
[347542518,1735911371293,-617.61,8.98e-05,2]
[347542519,1735911371315,-1235.46,8.98e-05,2]
[347542520,1735911371337,-3060.86,8.98e-05,2]
[347542521,1735911371358,-910.48,8.98e-05,2]
[347542522,1735911371380,-515.95,8.98e-05,2]
[347542523,1735911371402,-500.0,8.98e-05,2]
[347542524,1735911371424,-844.17,8.98e-05,2]
[347542525,1735911371447,-790.79,8.98e-05,2]
[347542526,1735911371469,-500.0,8.98e-05,2]
[347542527,1735911371491,-735.35,8.98e-05,2]
[347542528,1735911371514,-1025.64,8.98e-05,2]
[347542529,1735911371539,-724.69,8.98e-05,2]
[347542530,1735911371561,-500.0,8.98e-05,2]
[347542531,1735911371582,-500.0,8.98e-05,2]
[347542532,1735911371605,-4239.02,8.98e-05,2]
[347542533,1735911371632,-500.0,8.98e-05,2]
[347542534,1735911371655,-1372.12,8.98e-05,2]
[347542535,1735911371678,-1006.77,8.98e-05,2]
[347542536,1735911371700,-1023.35,8.98e-05,2]
[347542537,1735911371722,-710.19,8.98e-05,2]
[347542538,1735911371744,-646.1,8.98e-05,2]
[347542539,1735911371765,-949.03,8.98e-05,2]
[347542540,1735911371787,-544.89,8.98e-05,2]
[347542541,1735911371809,-914.09,8.98e-05,2]
[347542542,1735911371831,-2475.36,8.98e-05,2]
[347542543,1735911371853,-500.0,8.98e-05,2]
[347542544,1735911371876,-518.13,8.98e-05,2]
[347542545,1735911371897,-500.0,8.98e-05,2]
[347542546,1735911371918,-155.83015922,8.98e-05,2]
[347542547,1735911371940,-515.39,8.98e-05,2]
[347542548,1735911371962,-595.24,8.98e-05,2]
[347542549,1735911371983,-500.0,8.98e-05,2]
[347542550,1735911372005,-629.19,8.98e-05,2]
[347542551,1735911372026,-3275.71,8.98e-05,2]
[347542552,1735911372048,-500.0,8.98e-05,2]
[347542553,1735911372072,-1387.68,8.98e-05,2]
[347542554,1735911372093,-657.03,8.98e-05,2]
[347542555,1735911372114,-500.0,8.98e-05,2]
[347542556,1735911372136,-604.43,8.98e-05,2]
[347542557,1735911372159,-720.78,8.98e-05,2]
[347542558,1735911372180,-500.0,8.98e-05,2]
[347542559,1735911372202,-500.0,8.98e-05,2]
[347542560,1735911372223,-812.27,8.98e-05,2]
[347542561,1735911372244,-752.4,8.98e-05,2]
[347542562,1735911372266,-760.43,8.98e-05,2]
[347542563,1735911372432,-500.0,8.98e-05,2]
[347542564,1735911372456,-1128.71,8.98e-05,2]
[347542565,1735911372478,-1542.09,8.98e-05,2]
[347542566,1735911372500,-500.0,8.98e-05,2]
[347542567,1735911372521,-500.0,8.98e-05,2]
[347542568,1735911372543,-500.0,8.98e-05,2]
[347542569,1735911372566,-5127.05,8.98e-05,2]
[347542570,1735911372589,-500.0,8.98e-05,2]
[347542571,1735911372611,-1336.17,8.98e-05,2]
[347542572,1735911372640,-1178.16,8.98e-05,2]
[347542573,1735911372664,-1642.66,8.98e-05,2]
[347542574,1735911372686,-659.29,8.98e-05,2]
[347542575,1735911372708,-613.33,8.98e-05,2]
[347542576,1735911372730,-500.0,8.98e-05,2]
[347542577,1735911372751,-792.16,8.98e-05,2]
[347542578,1735911372773,-500.0,8.98e-05,2]
[347542579,1735911372796,-740.65,8.98e-05,2]
[347542580,1735911372819,-1443.42,8.98e-05,2]
[347542581,1735911372841,-604.51,8.98e-05,2]
[347542582,1735911372864,-500.0,8.981e-05,2]
[347542583,1735911372887,-500.0,8.981e-05,2]
[347542584,1735911372909,-500.0,8.981e-05,2]
[347542585,1735911372931,-740.07,8.981e-05,2]
[347542586,1735911372953,-500.0,8.981e-05,2]
[347542587,1735911372976,-500.0,8.981e-05,2]
[347542588,1735911372997,-500.0,8.981e-05,2]
[347542589,1735911373019,-500.0,8.981e-05,2]
[347542590,1735911373041,-665.84,8.981e-05,2]
[347542591,1735911373063,-500.0,8.981e-05,2]
[347542592,1735911373085,-500.0,8.981e-05,2]
[347542593,1735911373107,-500.0,8.981e-05,2]
[347542594,1735911373133,-500.0,8.981e-05,2]
[347542595,1735911373157,-743.93,8.981e-05,2]
[347542596,1735911373180,-500.0,8.981e-05,2]
[347542597,1735911373203,-850.19,8.981e-05,2]
[347542598,1735911373226,-686.44,8.981e-05,2]
[347542599,1735911373250,-506.59,8.981e-05,2]
[347542600,1735911373273,-500.0,8.981e-05,2]
[347542601,1735911373296,-2257.86,8.981e-05,2]
[347542602,1735911373320,-500.0,8.981e-05,2]
[347542603,1735911373342,-500.0,8.981e-05,2]
[347542604,1735911373364,-838.72,8.981e-05,2]
[347542605,1735911373389,-749.12,8.981e-05,2]
[347542606,1735911373411,-934.37,8.981e-05,2]
[347542607,1735911373434,-572.22,8.981e-05,2]
[347542608,1735911373458,-506.83,8.981e-05,2]
[347542609,1735911373480,-590.23,8.981e-05,2]
[347542610,1735911373504,-530.67,8.981e-05,2]
[347542611,1735911373527,-500.0,8.981e-05,2]
[347542612,1735911373549,-1043.92,8.981e-05,2]
[347542613,1735911373572,-1937.85,8.981e-05,2]
[347542614,1735911373594,-500.0,8.981e-05,2]
[347542615,1735911373616,-674.57,8.981e-05,2]
[347542616,1735911373640,-500.0,8.981e-05,2]
[347542617,1735911373662,-500.0,8.981e-05,2]
[347542618,1735911373685,-712.33,8.981e-05,2]
[347542619,1735911373707,-500.0,8.981e-05,2]
[347542620,1735911373729,-500.0,8.981e-05,2]
[347542621,1735911373751,-1030.35,8.981e-05,2]
[347542622,1735911373773,-500.0,8.981e-05,2]
[347542623,1735911373796,-630.01,8.981e-05,2]
[347542624,1735911373818,-500.0,8.981e-05,2]
[347542625,1735911373840,-776.68,8.981e-05,2]
[347542626,1735911373862,-3113.75,8.981e-05,2]
[347542627,1735911373885,-5049.47,8.981e-05,2]
[347542628,1735911373908,-5444.29,8.981e-05,2]
[347542629,1735911373929,-2197.61,8.981e-05,2]
[347542630,1735911373952,-5863.45,8.981e-05,2]
[347542631,1735911373974,-2221.62,8.981e-05,2]
[347542632,1735911373997,-553.25,8.981e-05,2]
[347542633,1735911374019,-1033.48,8.981e-05,2]
[347542634,1735911374041,-1261.16,8.981e-05,2]
[347542635,1735911374063,-2921.61,8.981e-05,2]
[347542636,1735911374085,-1738.74,8.981e-05,2]
[347542637,1735911374107,-1589.94,8.981e-05,2]
[347542638,1735911374132,-1958.02,8.981e-05,2]
[347542639,1735911374154,-2248.9,8.981e-05,2]
[347542640,1735911374175,-1902.54,8.981e-05,2]
[347542641,1735911374196,-1187.09,8.981e-05,2]
[347542642,1735911374218,-4363.77,8.981e-05,2]
[347542643,1735911374240,-1174.41,8.981e-05,2]
[347542644,1735911374263,-500.0,8.981e-05,2]
[347542645,1735911374284,-771.47,8.981e-05,2]
[347542646,1735911374306,-1834.24,8.981e-05,2]
[347542647,1735911374328,-4862.5,8.981e-05,2]
[347542648,1735911374350,-1565.6,8.981e-05,2]
[347542649,1735911374373,-150.0,8.981e-05,2]
[347542650,1735911374396,-151.0,8.982e-05,2]
[347542651,1735911374419,-3788.38,8.982e-05,2]
[347542652,1735911374443,-2200.0,9e-05,3]
[347542653,1735911374465,-9969.68344014,9e-05,2]
[347542654,1735911374488,-150.0,9.015e-05,2]
[347542655,1735911374510,-200.0,9.041e-05,2]
[347542656,1735911374533,-150.0,9.049e-05,2]
[347542657,1735911374556,-332.329,9.05e-05,2]
[347542658,1735911374579,-150.0,9.084e-05,2]
[347542659,1735911374603,-150.0,9.084e-05,2]
[347542660,1735911374631,-150.0,9.084e-05,2]
[347542661,1735911374653,-150.0,9.118e-05,2]
[347542662,1735911374678,-150.0,9.152e-05,2]
[347542663,1735911374700,-500.0,9.152e-05,2]
[347542664,1735911374723,-500.0,9.152e-05,2]
[347542665,1735911374746,-500.0,9.152e-05,2]
[347542666,1735911374767,-500.0,9.152e-05,2]
[347542667,1735911374793,-500.0,9.152e-05,2]
[347542668,1735911374815,-943.23,9.152e-05,2]
[347542669,1735911374838,-500.0,9.152e-05,2]
[347542670,1735911374861,-779.7,9.152e-05,2]
[347542671,1735911374883,-1155.22,9.152e-05,2]
[347542672,1735911374906,-500.0,9.152e-05,2]
[347542673,1735911374928,-500.0,9.152e-05,2]
[347542674,1735911374962,-500.0,9.152e-05,2]
[347542675,1735911374987,-500.0,9.152e-05,2]
[347542676,1735911375011,-608.97,9.152e-05,2]
[347542677,1735911375466,-500.0,9.152e-05,2]
[347542678,1735911375489,-500.0,9.152e-05,2]
[347542679,1735911375512,-500.0,9.152e-05,2]
[347542680,1735911375533,-830.34,9.152e-05,2]
[347542681,1735911375555,-500.0,9.152e-05,2]
[347542682,1735911375577,-500.0,9.152e-05,2]
[347542683,1735911375599,-865.65,9.152e-05,2]
[347542684,1735911375623,-500.0,9.152e-05,2]
[347542685,1735911375645,-643.51,9.152e-05,2]
[347542686,1735911375666,-500.0,9.152e-05,2]
[347542687,1735911375688,-500.0,9.152e-05,2]
[347542688,1735911375715,-674.23,9.152e-05,2]
[347542689,1735911375738,-500.0,9.152e-05,2]
[347542690,1735911375760,-516.84,9.152e-05,2]
[347542691,1735911375782,-500.0,9.152e-05,2]
[347542692,1735911375804,-500.0,9.152e-05,2]
[347542693,1735911375826,-500.0,9.152e-05,2]
[347542694,1735911375849,-500.0,9.152e-05,2]
[347542695,1735911375871,-1789.19,9.152e-05,2]
[347542696,1735911375892,-500.0,9.152e-05,2]
[347542697,1735911375915,-500.0,9.152e-05,2]
[347542698,1735911375941,-500.0,9.152e-05,2]
[347542699,1735911375965,-500.0,9.152e-05,2]
[347542700,1735911375987,-500.0,9.152e-05,2]
[347542701,1735911376008,-601.75,9.152e-05,2]
[347542702,1735911376031,-500.0,9.152e-05,2]
[347542703,1735911376053,-500.0,9.152e-05,2]
[347542704,1735911376076,-500.0,9.152e-05,2]
[347542705,1735911376099,-876.07,9.152e-05,2]
[347542706,1735911376122,-1159.63,9.152e-05,2]
[347542707,1735911376146,-1956.13,9.152e-05,2]
[347542708,1735911376168,-500.0,9.152e-05,2]
[347542709,1735911376190,-800.07,9.152e-05,2]
[347542710,1735911376212,-500.0,9.152e-05,2]
[347542711,1735911376235,-500.0,9.152e-05,2]
[347542712,1735911376257,-552.51,9.152e-05,2]
[347542713,1735911376279,-500.0,9.152e-05,2]
[347542714,1735911376302,-3568.54,9.152e-05,2]
[347542715,1735911376327,-500.0,9.152e-05,2]
[347542716,1735911376351,-500.0,9.152e-05,2]
[347542717,1735911376375,-263.65,9.152e-05,2]
[347542718,1735911376399,-1539.17,9.152e-05,2]
[347542719,1735911376421,-500.0,9.152e-05,2]
[347542720,1735911376445,-500.0,9.152e-05,2]
[347542721,1735911376467,-500.0,9.152e-05,2]
[347542722,1735911376490,-2710.99,9.152e-05,2]
[347542723,1735911376513,-500.0,9.152e-05,2]
[347542724,1735911376535,-1512.44,9.152e-05,2]
[347542725,1735911376557,-500.0,9.152e-05,2]
[347542726,1735911376580,-500.0,9.152e-05,2]
[347542727,1735911376603,-578.8,9.152e-05,2]
[347542728,1735911376628,-500.0,9.152e-05,2]
[347542729,1735911376650,-893.83,9.152e-05,2]
[347542730,1735911376673,-500.0,9.152e-05,2]
[347542731,1735911376697,-4328.13,9.152e-05,2]
[347542732,1735911376723,-500.0,9.152e-05,2]
[347542733,1735911376746,-580.75,9.152e-05,2]
[347542734,1735911376768,-500.0,9.152e-05,2]
[347542735,1735911376791,-890.74,9.152e-05,2]
[347542736,1735911376814,-3195.83,9.152e-05,2]
[347542737,1735911376837,-819.04,9.152e-05,2]
[347542738,1735911376861,-500.0,9.152e-05,2]
[347542739,1735911376884,-500.0,9.152e-05,2]
[347542740,1735911376907,-500.0,9.152e-05,2]
[347542741,1735911376930,-500.0,9.152e-05,2]
[347542742,1735911376954,-500.0,9.152e-05,2]
[347542743,1735911376977,-500.0,9.152e-05,2]
[347542744,1735911377000,-500.0,9.152e-05,2]
[347542745,1735911377023,-874.95,9.152e-05,2]
[347542746,1735911377046,-713.64,9.152e-05,2]
[347542747,1735911377068,-727.12,9.152e-05,2]
[347542748,1735911377092,-500.0,9.152e-05,2]
[347542749,1735911377114,-500.0,9.152e-05,2]
[347542750,1735911377137,-513.57,9.152e-05,2]
[347542751,1735911377160,-653.21,9.152e-05,2]
[347542752,1735911377183,-500.0,9.152e-05,2]
[347542753,1735911377206,-592.41,9.152e-05,2]
[347542754,1735911377229,-719.05,9.152e-05,2]
[347542755,1735911377252,-598.15,9.152e-05,2]
[347542756,1735911377275,-561.09,9.152e-05,2]
[347542757,1735911377299,-1274.53,9.152e-05,2]
[347542758,1735911377322,-500.0,9.152e-05,2]
[347542759,1735911377345,-500.0,9.152e-05,2]
[347542760,1735911377369,-3581.74,9.152e-05,2]
[347542761,1735911377392,-500.0,9.152e-05,2]
[347542762,1735911377416,-500.0,9.152e-05,2]
[347542763,1735911377441,-510.05,9.152e-05,2]
[347542764,1735911377464,-2813.183256,9.152e-05,2]
[347542765,1735911377487,-500.0,9.152e-05,2]
[347542766,1735911377509,-980.19,9.152e-05,2]
[347542767,1735911377532,-500.0,9.152e-05,2]
[347542768,1735911377555,-500.0,9.152e-05,2]
[347542769,1735911377578,-153.671496,9.152e-05,2]
[347542770,1735911377601,-772.4,9.152e-05,2]
[347542771,1735911377627,-666.39,9.152e-05,2]
[347542772,1735911377655,-500.0,9.152e-05,2]
[347542773,1735911377681,-500.0,9.152e-05,2]
[347542774,1735911377704,-500.0,9.152e-05,2]
[347542775,1735911377727,-500.0,9.152e-05,2]
[347542776,1735911377750,-4022.06,9.152e-05,2]
[347542777,1735911377774,-3290.363783,9.152e-05,2]
[347542778,1735911377796,-2609.15,9.152e-05,2]
[347542779,1735911377818,-500.0,9.152e-05,2]
[347542780,1735911377841,-500.0,9.152e-05,2]
[347542781,1735911377863,-589.85546742,9.154e-05,2]
[347542782,1735911377887,-509.0,9.178e-05,2]
[347542783,1735911377912,-150.0,9.186e-05,2]
[347542784,1735911377939,-150.0,9.203e-05,2]
[347542785,1735911378048,-150.0,9.22e-05,2]
[347542786,1735911378072,-150.0,9.243e-05,2]
[347542787,1735911378096,-1000.0,9.247e-05,2]
[347542788,1735911378120,-167.93501738,9.251e-05,2]
[347542789,1735911378144,-500.0,9.251e-05,2]
[347542790,1735911378167,-500.0,9.251e-05,2]
[347542791,1735911378190,-500.0,9.251e-05,2]
[347542792,1735911378214,-500.0,9.251e-05,2]
[347542793,1735911378238,-500.0,9.251e-05,2]
[347542794,1735911378262,-205.51098639,9.251e-05,2]
[347542795,1735911378285,-500.0,9.252e-05,2]
[347542796,1735911378309,-654.18,9.252e-05,2]
[347542797,1735911378333,-500.0,9.252e-05,2]
[347542798,1735911378357,-595.22,9.252e-05,2]
[347542799,1735911378380,-2319.6,9.252e-05,2]
[347542800,1735911378405,-5182.82,9.252e-05,2]
[347542801,1735911378429,-2533.75,9.252e-05,2]
[347542802,1735911378454,-500.0,9.252e-05,2]
[347542803,1735911378478,-990.12,9.252e-05,2]
[347542804,1735911378502,-2237.9,9.252e-05,2]
[347542805,1735911378526,-902.06,9.252e-05,2]
[347542806,1735911378549,-514.41,9.252e-05,2]
[347542807,1735911378573,-517.22,9.252e-05,2]
[347542808,1735911378596,-1141.87,9.252e-05,2]
[347542809,1735911378620,-500.0,9.252e-05,2]
[347542810,1735911378646,-705.0,9.252e-05,2]
[347542811,1735911378668,-781.64,9.252e-05,2]
[347542812,1735911378691,-500.0,9.252e-05,2]
[347542813,1735911378716,-4742.23,9.252e-05,2]
[347542814,1735911378742,-3458.67,9.252e-05,2]
[347542815,1735911378766,-500.0,9.252e-05,2]
[347542816,1735911378789,-3169.26,9.252e-05,2]
[347542817,1735911378812,-1341.47,9.252e-05,2]
[347542818,1735911378835,-500.0,9.252e-05,2]
[347542819,1735911378859,-500.0,9.252e-05,2]
[347542820,1735911378882,-500.0,9.252e-05,2]
[347542821,1735911378906,-664.94,9.252e-05,2]
[347542822,1735911378929,-2106.77,9.252e-05,2]
[347542823,1735911378956,-538.9,9.252e-05,2]
[347542824,1735911378978,-500.0,9.252e-05,2]
[347542825,1735911379001,-949.74,9.252e-05,2]
[347542826,1735911379025,-1916.46,9.252e-05,2]
[347542827,1735911379049,-500.0,9.252e-05,2]
[347542828,1735911379073,-832.54,9.252e-05,2]
[347542829,1735911379097,-1707.5,9.252e-05,2]
[347542830,1735911379121,-5612.0,9.252e-05,2]
[347542831,1735911379144,-1830.99,9.252e-05,2]
[347542832,1735911379169,-1445.41,9.252e-05,2]
[347542833,1735911379193,-2163.21,9.252e-05,2]
[347542834,1735911379217,-500.0,9.252e-05,2]
[347542835,1735911379241,-375.71016449,9.252e-05,2]
[347542836,1735911379265,-3186.84,9.252e-05,2]
[347542837,1735911379289,-547.8,9.252e-05,2]
[347542838,1735911379315,-500.0,9.252e-05,2]
[347542839,1735911379340,-789.2,9.252e-05,2]
[347542840,1735911379365,-500.0,9.252e-05,2]
[347542841,1735911379389,-500.0,9.252e-05,2]
[347542842,1735911379414,-564.23,9.252e-05,2]
[347542843,1735911379437,-500.0,9.252e-05,2]
[347542844,1735911379463,-1603.94,9.252e-05,2]
[347542845,1735911379488,-4217.85,9.252e-05,2]
[347542846,1735911379512,-544.24,9.252e-05,2]
[347542847,1735911379536,-1110.43,9.252e-05,2]
[347542848,1735911379560,-549.41,9.252e-05,2]
[347542849,1735911379584,-1563.25,9.252e-05,2]
[347542850,1735911379607,-525.09,9.253e-05,2]
[347542851,1735911379633,-500.0,9.253e-05,2]
[347542852,1735911379656,-500.0,9.253e-05,2]
[347542853,1735911379680,-500.0,9.253e-05,2]
[347542854,1735911379704,-574.82,9.253e-05,2]
[347542855,1735911379728,-500.0,9.253e-05,2]
[347542856,1735911379750,-500.0,9.253e-05,2]
[347542857,1735911379773,-500.0,9.253e-05,2]
[347542858,1735911379799,-500.0,9.253e-05,2]
[347542859,1735911379822,-500.0,9.253e-05,2]
[347542860,1735911379845,-723.95,9.253e-05,2]
[347542861,1735911379866,-500.0,9.253e-05,2]
[347542862,1735911379888,-500.0,9.253e-05,2]
[347542863,1735911379911,-500.0,9.253e-05,2]
[347542864,1735911379934,-500.0,9.253e-05,2]
[347542865,1735911379956,-500.0,9.253e-05,2]
[347542866,1735911379979,-500.0,9.253e-05,2]
[347542867,1735911380002,-500.0,9.253e-05,2]
[347542868,1735911380025,-500.0,9.253e-05,2]
[347542869,1735911380047,-717.38,9.253e-05,2]
[347542870,1735911380070,-500.0,9.253e-05,2]
[347542871,1735911380093,-500.0,9.253e-05,2]